[Event "44th Chess Olympiad Open 2022"]
[Site "Chennai"]
[Date "2022.07.29"]
[Round "1.47"]
[White "Isam, Gaith"]
[Black "Zacarias, M Ruben D"]
[Result "0-1"]
[WhiteElo "1828"]
[BlackElo "2175"]
[Annotator "RC"]
[PlyCount "162"]
[EventDate "2022.??.??"]
[TimeControl "60"]

1. e4 {[%emt 0:00:07]} c5 {[%emt 0:00:12]} 2. Nc3 {[%emt 0:00:11]} Nc6 {
[%emt 0:00:07]} 3. f4 {[%emt 0:00:14]} g6 {[%emt 0:00:19]} 4. Nf3 {[%emt 0:00:
00]} Bg7 {[%emt 0:00:07]} 5. Bb5 {[%emt 0:04:37]} Nd4 {[%emt 0:01:08]} 6. d3 {
[%emt 0:01:24]} Nxb5 {[%emt 0:03:30]} 7. Nxb5 {[%emt 0:00:19]} d5 {[%emt 0:00:
00]} 8. Nc3 {[%emt 0:03:30]} e6 {[%emt 0:02:44]} 9. O-O {[%emt 0:03:59]} Ne7 {
[%emt 0:00:13]} 10. Qe1 {[%emt 0:05:26]} O-O {[%emt 0:03:53]} 11. Qh4 {[%emt 0:
00:00]} Nc6 {[%emt 0:02:38]} 12. f5 {[%emt 0:07:11]} Qxh4 {[%emt 0:14:31]} 13.
Nxh4 {[%emt 0:00:22]} Bf6 {[%emt 0:17:06]} 14. Nf3 {[%emt 0:04:25]} d4 {
[%emt 0:02:47]} 15. e5 {[%emt 0:08:48]} Bh8 {[%emt 0:14:34]} 16. Ne4 {[%emt 0:
00:00]} exf5 {[%emt 0:00:18]} 17. Nxc5 {[%emt 0:03:04]} Nxe5 {[%emt 0:01:06]}
18. Nxd4 {[%emt 0:08:53]} Nxd3 {[%emt 0:01:28]} 19. Nxd3 {[%emt 0:03:20]} Bxd4+
{[%emt 0:00:07]} 20. Kh1 {[%emt 0:00:18]} Bd7 {[%emt 0:01:39]} 21. Bf4 {
[%emt 0:05:44]} Rfe8 {[%emt 0:03:00]} 22. c3 {[%emt 0:01:56]} Bg7 {[%emt 0:00:
00]} 23. Rfe1 {[%emt 0:01:01]} Bc6 {[%emt 0:06:14]} 24. Be5 {[%emt 0:02:41]} f6
{[%emt 0:02:36]} 25. Bd4 {[%emt 0:00:26]} g5 {[%emt 0:00:31]} 26. Kg1 {[%emt 0:
00:00]} f4 {[%emt 0:01:55]} 27. Kf2 {[%emt 0:01:24]} Kf7 {[%emt 0:00:15]} 28.
Rxe8 {[%emt 0:00:31]} Rxe8 {[%emt 0:00:07]} 29. Bxa7 {[%emt 0:00:36]} Bb5 {
[%emt 0:00:15]} 30. Rd1 {[%emt 0:01:32]} Ra8 {[%emt 0:01:49]} 31. Bc5 {[%emt 0:
00:00]} Rxa2 {[%emt 0:03:31]} 32. Ba3 {[%emt 0:00:19]} Bxd3 {[%emt 0:01:11]}
33. Rxd3 {[%emt 0:00:16]} Bf8 {[%emt 0:00:03]} 34. Bxf8 {[%emt 0:06:43]} Rxb2+
{[%emt 0:00:06]} 35. Kf3 {[%emt 0:00:42]} Kxf8 {[%emt 0:00:06]} 36. Rd7 {
[%emt 0:00:24]} h5 {[%emt 0:01:28]} 37. h3 {[%emt 0:00:18]} Rb5 {[%emt 0:10:04]
} 38. Rc7 {[%emt 0:02:04]} Re5 {[%emt 0:00:44]} 39. Rxb7 {[%emt 0:00:37]} Re3+
{[%emt 0:00:05]} 40. Kf2 {[%emt 0:00:25]} Rxc3 {[%emt 0:00:05]} 41. Rh7 {
[%emt 0:30:26]} h4 {[%emt 0:30:06]} 42. Ra7 {[%emt 0:00:21]} Re3 {[%emt 0:00:
00]} 43. Rb7 {[%emt 0:00:53]} Re7 {[%emt 0:00:05]} 44. Rb6 {[%emt 0:01:31]} Kf7
{[%emt 0:00:06]} 45. Ra6 {[%emt 0:00:13]} Re6 {[%emt 0:00:14]} 46. Ra8 {
[%emt 0:00:52]} Kg6 {[%emt 0:00:28]} 47. Rg8+ {[%emt 0:00:15]} Kf5 {[%emt 0:00:
00]} 48. Rb8 {[%emt 0:00:23]} Ra6 {[%emt 0:00:33]} 49. Rc8 {[%emt 0:01:16]} Ra5
{[%emt 0:02:12]} 50. Rb8 {[%emt 0:00:26]} Rd5 {[%emt 0:00:18]} 51. Ra8 {
[%emt 0:00:00]} Rd2+ {[%emt 0:00:00]} 52. Kf3 {[%emt 0:00:00]} Rd3+ {[%emt 0:
00:00]} 53. Kf2 {[%emt 0:00:00]} Rg3 {[%emt 0:00:00]} 54. Ra5+ {[%emt 0:00:00]}
Kg6 {[%emt 0:00:00]} 55. Ra1 {[%emt 0:00:00]} f3 {[%emt 0:00:00]} 56. gxf3 {
[%emt 0:00:00]} Rxh3 {[%emt 0:00:00]} 57. Kg2 {[%emt 0:00:00]} Rg3+ {[%emt 0:
00:00]} 58. Kf2 {[%emt 0:00:00]} g4 {[%emt 0:00:00]} 59. fxg4 {[%emt 0:00:00]}
Kg5 {[%emt 0:00:00]} 60. Ra8 {[%emt 0:00:00]} Kxg4 {[%emt 0:00:00]} 61. Rg8+ {
[%emt 0:00:00]} Kf4 {[%emt 0:00:00]} 62. Rh8 {[%emt 0:00:00]} Rg4 {[%emt 0:00:
00]} 63. Rh6 {[%emt 0:00:00]} Kg5 {[%emt 0:00:00]} 64. Rh8 {[%emt 0:00:00]} Ra4
{[%emt 0:00:00]} 65. Kg2 {[%emt 0:00:00]} Ra2+ {[%emt 0:00:00]} 66. Kh3 {
[%emt 0:00:00]} Ra3+ {[%emt 0:00:00]} 67. Kh2 {[%emt 0:00:00]} f5 {[%emt 0:00:
00]} 68. Rg8+ {[%emt 0:00:00]} Kf4 {[%emt 0:00:00]} 69. Rb8 {[%emt 0:00:00]}
Re3 {[%emt 0:01:32]} 70. Rb4+ {[%emt 0:00:00]} Re4 {[%emt 0:00:05]} 71. Rb8 {
[%emt 0:00:00]} Kf3 {[%emt 0:01:02]} 72. Rb3+ {[%emt 0:00:00]} Re3 {[%emt 0:00:
00]} 73. Rb4 {[%emt 0:00:00]} Re4 {[%emt 0:01:04]} 74. Rb3+ {[%emt 0:00:00]}
Kg4 {[%emt 0:00:06]} 75. Rb2 {[%emt 0:00:00]} f4 {[%emt 0:00:06]} 76. Kg2 {
[%emt 0:00:00]} h3+ {[%emt 0:05:13]} 77. Kh2 {[%emt 0:03:33]} f3 {[%emt 0:00:
00]} 78. Rb1 {[%emt 0:00:39]} Re2+ {[%emt 0:00:29]} 79. Kh1 {[%emt 0:00:15]} f2
{[%emt 0:00:59]} 80. Rf1 {[%emt 0:00:03]} Kf3 {[%emt 0:00:52]} 81. Kh2 {
[%emt 0:00:13]} Re1 {[%emt 0:00:12]} 0-1

[Event "44th Chess Olympiad Open 2022"]
[Site "Chennai"]
[Date "2022.07.29"]
[Round "1.47"]
[White "Shawabke Ziyad"]
[Black "Bachmann, Axel"]
[Result "0-1"]
[WhiteElo "1786"]
[BlackElo "2588"]
[Annotator "TA"]
[PlyCount "62"]
[EventDate "2022.??.??"]
[TimeControl "60"]

{[%evp 19,62,-8,-8,-5,-6,-8,-10,-19,-26,-39,-25,-38,-27,-27,0,-15,0,-15,0,-2,0,
0,0,0,0,-21,-27,-54,-45,-52,-52,-56,-55,-60,-39,-41,-49,-206,-169,-875,-864,
-1180,-1165,-968,-762]} 1. Nf3 {[%emt 0:00:04]} Nf6 {[%emt 0:00:30]} 2. c4 {
[%emt 0:00:07]} e6 {[%emt 0:00:10]} 3. e3 {[%emt 0:00:16]} b6 {[%emt 0:01:32]}
4. b3 {[%emt 0:00:23]} Bb7 {[%emt 0:04:19]} 5. Bb2 {[%emt 0:00:11]} d5 {
[%emt 0:00:28]} 6. Nc3 {[%emt 0:00:32]} a6 {[%emt 0:00:59]} 7. cxd5 {[%emt 0:
00:00]} exd5 {[%emt 0:00:09]} 8. d4 {[%emt 0:00:10]} Bd6 {[%emt 0:00:08]} 9.
Bd3 {[%emt 0:00:17]} Nbd7 {[%emt 0:00:09]} 10. O-O {[%emt 0:00:32]} O-O {
[%emt 0:00:07]} 11. Ne2 {[%emt 0:02:05] E14: Queen's Indian: Classical
Variation (4 e3).} Qe7 {[%emt 0:02:42]} 12. Ng3 {[%emt 0:00:19]} g6 {[%emt 0:
00:00] Against Nf5} 13. Qc2 {[%emt 0:19:16] The position is equal.} Ne4 {
[%emt 0:01:56] [#]} 14. Bxe4 $146 {[%emt 0:04:42]} ({Predecessor:} 14. Rac1
Rac8 15. Qe2 Rfe8 16. Rc2 a5 17. Rfc1 c6 18. Ba6 Bxa6 19. Qxa6 Bxg3 20. hxg3 {
½-½ (46) Skomorokhin,R (2318)-Cvitan,O (2481) Zuerich 2019}) 14... dxe4 {
[%emt 0:03:39]} 15. Nd2 {[%emt 0:01:13]} f5 {[%emt 0:17:48]} 16. Nc4 $1 {
[%emt 0:00:48]} Bd5 {[%emt 0:00:12]} 17. Nxd6 {[%emt 0:00:46]} Qxd6 {[%emt 0:
00:00]} 18. Rac1 {[%emt 0:01:39]} c6 {[%emt 0:00:59]} 19. Ne2 {[%emt 0:00:05]}
Nf6 {[%emt 0:00:48]} 20. Nc3 {[%emt 0:02:30]} Rac8 {[%emt 0:01:58]} 21. Qe2 {
[%emt 0:16:34]} b5 {[%emt 0:03:30]} 22. Nxd5 {[%emt 0:07:04]} Nxd5 {[%emt 0:00:
00]} 23. a3 {[%emt 0:00:14]} Qe6 {[%emt 0:03:19]} 24. Rfe1 {[%emt 0:03:31]}
Rce8 {[%emt 0:02:37]} 25. g3 {[%emt 0:02:47] Prevents f4.} Rf6 {[%emt 0:00:08]}
26. Rc5 {[%emt 0:00:09]} Qf7 {[%emt 0:06:28]} (26... g5 $5 {[%cal Rf5f4]}) 27.
Rec1 {[%emt 0:01:34]} Ree6 {[%emt 0:00:08]} 28. Qc2 $2 {[%emt 0:01:09] [#]
White does not recover from this.} (28. Bc3 $15) 28... g5 $1 $19 {[%emt 0:00:
00]} 29. Rxc6 $2 {[%emt 0:04:10]} (29. Re1) 29... Rxc6 {[%emt 0:00:11] Black
is clearly winning.} 30. Qxc6 {[%emt 0:00:54]} Rxc6 {[%emt 0:00:06]} 31. Rxc6 {
[%emt 0:00:01]} Qh5 {[%emt 0:00:10] Weighted Error Value: White=0.67/Black=0.
04 (flawless)} 0-1

[Event "44th Chess Olympiad Open 2022"]
[Site "Chennai"]
[Date "2022.07.29"]
[Round "1.48"]
[White "Macovei, Andrei"]
[Black "Prudente, Elmer"]
[Result "1-0"]
[WhiteElo "2478"]
[BlackElo "1995"]
[Annotator "TA"]
[PlyCount "51"]
[EventDate "2022.??.??"]
[TimeControl "60"]

{[%evp 12,51,40,40,78,100,103,65,145,136,149,20,165,57,41,68,65,72,178,178,230,
218,220,222,220,263,823,813,812,783,733,718,538,169,697,608,532,534,29994,
29995,29995,29996]} 1. e4 {[%emt 0:00:28]} c5 {[%emt 0:00:24]} 2. Nf3 {[%emt 0:
00:00]} g6 {[%emt 0:00:27]} 3. d4 {[%emt 0:00:40]} cxd4 {[%emt 0:00:05]} 4.
Nxd4 {[%emt 0:00:03]} Nc6 {[%emt 0:00:25]} 5. c4 {[%emt 0:00:21]} Nf6 {[%emt 0:
00:00]} 6. Nc3 {[%emt 0:00:07]} Nxd4 {[%emt 0:00:18]} 7. Qxd4 {[%emt 0:02:17]}
Bg7 {[%emt 0:00:56] B36: Sicilian: Maroczy Bind: Gurgenidze System.} 8. e5 {
[%emt 0:03:43]} Ng8 {[%emt 0:00:35]} 9. Bf4 {[%emt 0:01:13]} Nh6 {[%emt 0:00:
00]} (9... d6 $1 $14) 10. O-O-O $16 {[%emt 0:04:32]} O-O {[%emt 0:02:20][%cal
Yd7d6]} 11. Be2 {[%emt 0:02:26] [#]} (11. f3 $1 $16) 11... f6 $146 {[%emt 0:00:
00]} (11... d6 $1 $11 {and Black has nothing to worry.}) ({Predecessor:} 11...
d6 12. Qe3 Nf5 13. Qe4 Qa5 14. Rd5 Qb6 15. g4 dxe5 16. Bxe5 Bh6+ 17. Kb1 Be6
18. Qf3 Nd6 19. c5 Bxd5 20. Nxd5 Qxc5 21. Nxe7# {1-0 (21) Schimmer,M (1805)
-Catalano,E (1596) Frankfurt 2019}) 12. Bf3 {[%emt 0:23:38]} (12. e6 $1 $18 {
[%cal Re6d7]} g5 13. exd7 gxf4 14. dxc8=N (14. dxc8=B Qxc8 15. Qxf4 f5 $16)
14... Qxc8 15. Qxf4) 12... Nf7 $14 {[%emt 0:18:12][%cal Rf6e5]} 13. exf6 {
[%emt 0:04:46]} Bxf6 {[%emt 0:00:35]} 14. Qd2 $36 {[%emt 0:00:07] Black is
under strong pressure.} Qa5 {[%emt 0:03:20] [#]} (14... d6 $16 {is a better
defense.}) 15. Nd5 $1 $18 {[%emt 0:09:55]} Qxa2 {[%emt 0:03:24]} (15... Qxd2+
$142 16. Rxd2 Bg5) 16. Nxf6+ {[%emt 0:00:09]} exf6 {[%emt 0:00:11]} 17. Bd6 {
[%emt 0:05:09] Active counter play!} Re8 {[%emt 0:17:15]} 18. Bd5 {[%emt 0:00:
09] And now Qh6 would win. This bishop pair is nice.} Kg7 {[%emt 0:00:00]
Against Qh6+} (18... Qa1+ 19. Kc2 Qa4+ 20. Kc3 Qa5+ 21. Bb4 Qc7) 19. Bxf7 {
[%emt 0:05:57]} Kxf7 {[%emt 0:00:13] [#]} 20. Rhe1 $1 {[%emt 0:00:04]} Qxc4+ {
[%emt 0:08:54]} 21. Kb1 {[%emt 0:00:01] White threatens Qh6 and mate.} g5 {
[%emt 0:00:17]} 22. h4 $2 {[%emt 0:09:40]} (22. Rxe8 Kxe8 23. Re1+ Kf7 24. Qd1
(24. Qe3 Qe6 $14)) 22... b6 $2 {[%emt 0:00:57]} (22... Re6) 23. Rxe8 {[%emt 0:
01:55]} Kxe8 {[%emt 0:00:04]} 24. Qe3+ {[%emt 0:00:14]} Kf7 {[%emt 0:00:00]}
25. Qe7+ {[%emt 0:00:51]} Kg6 {[%emt 0:00:00]} 26. h5+ {[%emt 0:01:05]
Deflection. Weighted Error Value: White=0.31/Black=1.27} 1-0

[Event "44th Chess Olympiad Open 2022"]
[Site "Chennai"]
[Date "2022.07.29"]
[Round "1.48"]
[White "Baltag, Iulian"]
[Black "Estur, Gavino Aguilar"]
[Result "1-0"]
[WhiteElo "2405"]
[BlackElo "1598"]
[Annotator "TA"]
[PlyCount "119"]
[EventDate "2022.??.??"]
[TimeControl "60"]

{[%evp 14,119,20,-1,23,-6,58,30,90,76,77,54,82,62,56,58,217,220,213,214,245,96,
87,102,95,105,101,94,114,0,0,9,124,124,136,135,154,100,108,35,70,77,528,85,120,
110,114,83,85,89,162,164,149,159,149,85,135,109,558,557,493,219,379,37,37,59,
50,52,100,37,18,6,205,145,142,106,240,236,329,329,454,442,546,531,530,529,504,
499,2525,2583,2183,1839,2274,2024,29968,29971,29977,874,7152,9654,5535,1353,
2920,2325,29980,29981,29975,29973]} 1. Nf3 {[%emt 0:00:05]} Nf6 {[%emt 0:00:43]
} 2. c4 {[%emt 0:00:07]} c6 {[%emt 0:00:37]} 3. d4 {[%emt 0:00:36]} d5 {
[%emt 0:01:27]} 4. Nc3 {[%emt 0:01:01]} e6 {[%emt 0:02:04]} 5. e3 {[%emt 0:00:
00]} Be7 {[%emt 0:00:48]} 6. Qc2 {[%emt 0:02:53]} Nbd7 {[%emt 0:01:07] was the
old line (6...0-0).} 7. g4 {[%emt 0:00:14][%cal Yg2g4,Yg4g5]} dxc4 {[%emt 0:00:
50]} 8. Bxc4 {[%emt 0:00:30]} Nd5 {[%emt 0:02:12] D45: Semi-Slav: 5 e3.} 9. Bd2
{[%emt 0:01:14] [#]} h5 $146 {[%emt 0:00:55]} (9... Nxc3 $11 10. bxc3 b6) ({
Predecessor:} 9... b6 10. e4 Nb4 11. Qb3 a5 12. a3 Na6 13. Qc2 Bb7 14. Bf4 b5
15. Be2 b4 16. axb4 Nxb4 {0-1 (33) Doluweera,D (1863)-Quiroga Jaquez,A (2178)
Tornelo INT 2020}) 10. Rg1 {[%emt 0:00:38]} (10. g5 $5) 10... Bf8 {[%emt 0:03:
59]} (10... hxg4 $11 {remains equal.} 11. Rxg4 g6) 11. g5 {[%emt 0:02:41]} g6 {
[%emt 0:01:57]} 12. Ne4 {[%emt 0:01:09]} Be7 {[%emt 0:00:00]} 13. Be2 {[%emt 0:
00:27]} Qc7 {[%emt 0:01:43]} 14. O-O-O {[%emt 0:02:08]} Bd6 $2 {[%emt 0:06:29]}
(14... a5 $14) 15. Nxd6+ $18 {[%emt 0:01:18]} Qxd6 {[%emt 0:00:11]} 16. Kb1 {
[%emt 0:00:08]} b6 {[%emt 0:05:25]} 17. Ne5 {[%emt 0:00:00]} (17. Qc1 $18 {
has better winning chances.}) 17... Nxe5 $16 {[%emt 0:00:00]} 18. dxe5 {
[%emt 0:04:53]} Qc7 {[%emt 0:01:57]} 19. e4 {[%emt 0:02:04]} Ne7 {[%emt 0:01:
54]} 20. Bb4 {[%emt 0:00:41] Hoping for Bxe7.} c5 {[%emt 0:04:00]} 21. Rd6 {
[%emt 0:01:31] White is much more active. The black rooks are badly placed.} (
21. Bb5+ $16 Kf8 22. Bc3) 21... Bd7 $1 $11 {[%emt 0:06:53]} 22. f3 {[%emt 0:04:
41]} O-O-O {[%emt 0:01:26]} (22... a5 $11 23. Bc3 Nc8) 23. Bc3 $1 $16 {[%emt 0:
00:49] Threatens to win with Rgd1.} Kb8 {[%emt 0:03:34]} 24. Rgd1 $36 {[%emt 0:
00:28] Black is under strong pressure.} Bc6 {[%emt 0:00:00]} 25. Qd2 {[%emt 0:
00:26]} ({White should play} 25. b4) 25... Rde8 {[%emt 0:02:01]} 26. Qf4 {
[%emt 0:02:34]} (26. Ba6 $16) 26... Rhf8 {[%emt 0:00:00]} 27. b4 {[%emt 0:01:
26][%cal Yb2b4,Yb4c5,Yc5c6] And now b5 would win.} Nc8 $2 {[%emt 0:02:07] [#]}
(27... c4 $16) 28. R6d2 $2 {[%emt 0:03:23]} (28. b5 $1 $18 {[%cal Rb5c6] and
the rest is easy.}) 28... Ba4 {[%emt 0:00:52]} 29. Rc1 {[%emt 0:00:34] bxc5 is
the strong threat.} Ka8 {[%emt 0:07:35]} 30. Bb2 {[%emt 0:00:46]} Rd8 {[%emt 0:
03:37]} 31. bxc5 {[%emt 0:02:49]} b5 {[%emt 0:03:11]} (31... bxc5 $16 {was
necessary.} 32. Rxd8 Rxd8) 32. c6 $18 {[%emt 0:01:19]} Rxd2 {[%emt 0:04:36]}
33. Qxd2 {[%emt 0:00:00]} Rd8 {[%emt 0:00:09] [#]} 34. Qe3 {[%emt 0:00:59]} ({
White should try} 34. Qc3 $1) 34... Qb6 {[%emt 0:02:20]} (34... Ne7 $142) 35.
Qf4 {[%emt 0:03:55]} b4 $2 {[%emt 0:03:59]} (35... Qc7 $16 {is more resistant.}
) 36. Qxf7 {[%emt 0:02:38]} Bxc6 {[%emt 0:03:22]} 37. Ka1 {[%emt 0:00:26]} (37.
Bc4 $142) 37... Be8 $2 {[%emt 0:00:49]} (37... Bd7 38. Qxg6 a5) 38. Qf8 $2 {
[%emt 0:00:00]} ({White has to play} 38. Qf6 $18) 38... Kb8 $1 $14 {[%emt 0:02:
23]} 39. Bc4 {[%emt 0:01:58] Black must now prevent Qf6.} Ba4 $1 {[%emt 0:01:
49]} 40. Qf4 {[%emt 0:10:35]} Rd1 {[%emt 0:04:46]} (40... a5 $14 {was
preferrable.}) 41. Be2 {[%emt 0:35:05] A strong pair of Bishops.} (41. Rxd1 $16
Bxd1 42. Qd2 Bxf3 43. Bd4) 41... Rxc1+ {[%emt 0:30:35]} 42. Qxc1 {[%emt 0:00:
06] aiming for f4.} Qc7 $2 {[%emt 0:00:39]} (42... Qf2 $1 $11 {and Black has
nothing to worry.} 43. Bc4 (43. Ba6 Nb6 $11) 43... Qxf3) 43. Qd2 {[%emt 0:01:
26]} a5 {[%emt 0:00:12]} 44. a3 {[%emt 0:08:13]} b3 {[%emt 0:00:00]} (44...
bxa3 $16 {might work better.} 45. Bc3 (45. Bxa3 Qxe5+ 46. Qb2+ Qxb2+ 47. Kxb2
Kc7 $16) 45... Bb3) 45. Bc3 {[%emt 0:00:00]} Qc5 {[%emt 0:00:00]} 46. Kb2 {
[%emt 0:00:00]} ({Don't take} 46. Bxa5 Qxe5+ 47. Bc3 Qxh2 $18) 46... Kb7 {
[%emt 0:00:00]} 47. Bd4 {[%emt 0:00:00]} Qc2+ {[%emt 0:00:00]} 48. Qxc2 {
[%emt 0:00:00]} bxc2 $18 {[%emt 0:00:00] Endgame KBB-KBN} 49. Bc4 {[%emt 0:00:
00]} Bd7 {[%emt 0:00:00]} 50. Kxc2 {[%emt 0:00:00]} Nb6 {[%emt 0:00:00]} (50...
Kc7 $142 51. f4 Nb6) 51. Bxb6 {[%emt 0:00:00]} Kxb6 {[%emt 0:00:00] KB-KB} 52.
Kc3 {[%emt 0:00:00]} Kc5 {[%emt 0:00:00]} 53. h4 {[%emt 0:00:00]} a4 {[%emt 0:
00:00]} 54. f4 {[%emt 0:00:00]} Bc8 {[%emt 0:00:00]} 55. Ba2 {[%emt 0:00:00]} (
55. f5 $142 exf5 56. e6 fxe4 57. e7 Bd7 58. Bf7 Kd6 59. e8=Q Bxe8 60. Bxe8)
55... Bd7 {[%emt 0:00:00]} 56. f5 {[%emt 0:00:00]} exf5 {[%emt 0:00:00]} 57.
Bf7 {[%emt 0:00:00] White wants to mate with e6.} f4 {[%emt 0:00:00]} 58. Kd2 {
[%emt 0:00:00] e6 would kill now.} Kd4 {[%emt 0:03:43]} 59. e6 {[%emt 0:00:00]
[%cal Ye5e6,Ye6e7]} Bb5 {[%emt 0:00:28]} 60. e7 {[%emt 0:33:41] Weighted Error
Value: White=0.61/Black=0.85} 1-0

[Event "44th Chess Olympiad Open 2022"]
[Site "Chennai"]
[Date "2022.07.29"]
[Round "1.48"]
[White "Mafnas, Peter"]
[Black "Ceres, Dragos"]
[Result "0-1"]
[WhiteElo "2039"]
[BlackElo "2378"]
[Annotator "TA"]
[PlyCount "58"]
[EventDate "2022.??.??"]
[TimeControl "60"]

{[%evp 21,58,-5,-14,-14,7,-54,-34,-24,39,-140,-135,-145,-131,-239,-238,-239,
-238,-240,-240,-252,-247,-254,-257,-256,-235,-259,-269,-245,-250,-357,-296,
-277,-273,-281,-274,-296,-284,-803,-320]} 1. d4 {[%emt 0:00:25]} Nf6 {[%emt 0:
00:00]} 2. c4 {[%emt 0:00:11]} e6 {[%emt 0:00:09]} 3. Nc3 {[%emt 0:00:10]} Bb4
{[%emt 0:01:16]} 4. Bg5 {[%emt 0:04:48][%cal Yc1g5,Yg5h4,Yh4g3]} h6 {[%emt 0:
05:35]} 5. Bh4 {[%emt 0:01:41]} b6 {[%emt 0:05:20]} 6. e3 {[%emt 0:00:00]} Bb7
{[%emt 0:00:18]} 7. Nf3 {[%emt 0:00:16]} g5 {[%emt 0:07:37]} 8. Bg3 {[%emt 0:
00:18]} Ne4 {[%emt 0:00:08]} 9. Qc2 {[%emt 0:02:36]} Bxc3+ {[%emt 0:00:00]} 10.
bxc3 {[%emt 0:00:07]} d6 {[%emt 0:00:12]} 11. Bd3 {[%emt 0:00:20]} f5 {[%emt 0:
02:58]} 12. Qb3 {[%emt 0:11:43][%cal Yc4c5] [#] E13: Queen's Indian/
Nimzo-Indian hybrid: 4 Nc3 Bb7 5 Bg5 h6 6 Bh4 Bb4.} Qf6 $146 {[%emt 0:05:23]} (
{Predecessor:} 12... Nd7 13. c5 Qe7 14. O-O dxc5 15. Bxc7 Rc8 16. Bg3 cxd4 17.
cxd4 Rc3 18. Qd1 Nxg3 19. hxg3 Kf7 {0-1 (29) Brewer,S (2427)-Kudela,S (2488)
ICCF email 2014}) 13. Rc1 {[%emt 0:09:15]} (13. O-O $11) 13... O-O {[%emt 0:00:
00]} 14. c5 {[%emt 0:03:13] Black is slightly better.} Bd5 {[%emt 0:02:19]} ({
Better is} 14... Nxg3 $11 15. hxg3 dxc5) 15. Bc4 $2 {[%emt 0:01:10]} (15. c4
$14 {was the only good move.} Bb7 16. cxd6 Nxg3 17. hxg3 cxd6 18. c5) 15...
Bxc4 $17 {[%emt 0:00:41]} 16. Qxc4 {[%emt 0:00:06]} bxc5 {[%emt 0:00:08]} 17.
dxc5 {[%emt 0:09:53]} (17. Qa4 $17) 17... Nxc5 $19 {[%emt 0:00:08]} 18. O-O {
[%emt 0:02:20]} Nbd7 {[%emt 0:00:51][%cal Yb8d7,Yd7b6,Yb6c4,Yc4e3]} 19. h3 {
[%emt 0:02:16]} Rab8 {[%emt 0:01:04]} 20. Rb1 {[%emt 0:00:51]} Rb6 {[%emt 0:01:
20]} 21. Rxb6 {[%emt 0:01:32]} Nxb6 {[%emt 0:00:12] Pair of Knights!} 22. Qd4 {
[%emt 0:00:45]} Ne4 {[%emt 0:00:11]} 23. Rc1 {[%emt 0:02:33]} e5 {[%emt 0:02:
09][%cal Ye6e5,Ye5e4]} 24. Qb4 {[%emt 0:03:14]} c5 {[%emt 0:00:11]} 25. Qa5 {
[%emt 0:02:08]} (25. Qb3+ $142 c4 26. Qb2) 25... Nxg3 {[%emt 0:02:36]} 26. fxg3
{[%emt 0:08:23]} Nc4 {[%emt 0:03:13][%csl Ya5,Ye3] Inhibits Nd2.} 27. Qxa7 {
[%emt 0:02:06]} e4 {[%emt 0:00:35]} ({But not} 27... Nxe3 $2 28. Re1 Nc4 29.
Qa6 $19) 28. Nh2 {[%emt 0:00:21]} Nxe3 {[%emt 0:00:17] [#] Hoping for ...f4.}
29. a4 $2 {[%emt 0:00:59]} (29. Qa6) 29... Qe5 $2 {[%emt 0:01:27] Weighted
Error Value: White=0.57/Black=0.15 (very precise)} (29... f4 30. Nf1 {[#]} Nxg2
$1) 0-1